[Event "Late-Titled-Tuesday-Blitz-January-16-2024"]
[Site "Chess.com"]
[Date "2024.01.16"]
[Round "7"]
[White "frederiksvane"]
[Black "PepeCuenca"]
[Result "1-0"]
[WhiteElo "2894"]
[BlackElo "2682"]
[TimeControl "180+1"]
[EndTime "15:18:18 PST"]
[Termination "frederiksvane won by resignation"]

1. g3 {[%clk 0:03:00.9]} 1... d5 {[%clk 0:02:59.7]} 2. Nf3 {[%clk 0:03:00.7]}
2... Nf6 {[%clk 0:02:59.6]} 3. Bg2 {[%clk 0:03:01]} 3... c5 {[%clk 0:03:00.3]}
4. O-O {[%clk 0:03:00.8]} 4... e6 {[%clk 0:03:00.9]} 5. d3 {[%clk 0:02:59.7]}
5... Nc6 {[%clk 0:02:59.9]} 6. e4 {[%clk 0:03:00.2]} 6... Be7 {[%clk 0:02:51.4]}
7. a4 {[%clk 0:02:59.8]} 7... O-O {[%clk 0:02:44.4]} 8. e5 {[%clk 0:02:59.2]}
8... Nd7 {[%clk 0:02:44.6]} 9. Re1 {[%clk 0:02:59.7]} 9... a6 {[%clk 0:02:33.5]}
10. h4 {[%clk 0:02:57.6]} 10... Rb8 {[%clk 0:02:32.6]} 11. h5 {[%clk 0:02:53.6]}
11... b5 {[%clk 0:02:29.7]} 12. h6 {[%clk 0:02:47.4]} 12... g6 {[%clk
0:02:29.8]} 13. axb5 {[%clk 0:02:47.3]} 13... axb5 {[%clk 0:02:29.7]} 14. Nbd2
{[%clk 0:02:45.2]} 14... Bb7 {[%clk 0:02:28.4]} 15. Nf1 {[%clk 0:02:43.7]} 15...
Ra8 {[%clk 0:02:28.8]} 16. Rxa8 {[%clk 0:02:37.9]} 16... Qxa8 {[%clk 0:02:29.7]}
17. N1h2 {[%clk 0:02:38]} 17... b4 {[%clk 0:02:23]} 18. Bf4 {[%clk 0:02:33.1]}
18... Qa2 {[%clk 0:02:18.6]} 19. Qc1 {[%clk 0:02:33]} 19... Qa5 {[%clk
0:01:57.2]} 20. Bg5 {[%clk 0:02:31.1]} 20... Qd8 {[%clk 0:01:56.8]} 21. Bxe7
{[%clk 0:02:31]} 21... Qxe7 {[%clk 0:01:57.6]} 22. Ng4 {[%clk 0:02:31.1]} 22...
Ra8 {[%clk 0:01:51.6]} 23. c3 {[%clk 0:02:20.5]} 23... bxc3 {[%clk 0:01:51.2]}
24. bxc3 {[%clk 0:02:21.4]} 24... Ba6 {[%clk 0:01:49]} 25. d4 {[%clk 0:02:21.3]}
25... Bd3 {[%clk 0:01:47]} 26. Qf4 {[%clk 0:02:14]} 26... Bf5 {[%clk 0:01:45.4]}
27. Nf6+ {[%clk 0:02:09.6]} 27... Nxf6 {[%clk 0:01:39.9]} 28. exf6 {[%clk
0:02:10.5]} 28... Qf8 {[%clk 0:01:30.3]} 29. Ne5 {[%clk 0:02:05]} 29... Nxe5
{[%clk 0:01:29.4]} 30. dxe5 {[%clk 0:02:05.3]} 30... Qb8 {[%clk 0:01:23.8]} 31.
g4 {[%clk 0:02:03.8]} 31... Bd3 {[%clk 0:01:23.5]} 32. g5 {[%clk 0:02:02.3]}
32... Bc4 {[%clk 0:01:09.6]} 33. Qc1 {[%clk 0:01:55.4]} 33... Kf8 {[%clk
0:01:01.1]} 34. Qb1 {[%clk 0:01:42.9]} 34... Qb3 {[%clk 0:00:54]} 35. Qc1 {[%clk
0:01:24.4]} 35... Ke8 {[%clk 0:00:48]} 36. Qe3 {[%clk 0:01:23.6]} 36... Qb6
{[%clk 0:00:48.3]} 37. Rc1 {[%clk 0:01:20.9]} 37... Kd7 {[%clk 0:00:47.5]} 38.
Qe1 {[%clk 0:01:20.6]} 38... Ra2 {[%clk 0:00:44.7]} 39. Rb1 {[%clk 0:01:20]}
39... Rb2 {[%clk 0:00:45.2]} 40. Ra1 {[%clk 0:01:18.1]} 40... Ra2 {[%clk
0:00:44.5]} 41. Qb1 {[%clk 0:00:55.1]} 41... Qxb1+ {[%clk 0:00:39.4]} 42. Rxb1
{[%clk 0:00:56]} 42... Kc7 {[%clk 0:00:39.7]} 43. Bf1 {[%clk 0:00:44.6]} 43...
Bxf1 {[%clk 0:00:38.6]} 44. Kxf1 {[%clk 0:00:45.5]} 44... Rc2 {[%clk 0:00:35]}
45. Rb3 {[%clk 0:00:39.5]} 45... c4 {[%clk 0:00:31.4]} 46. Ra3 {[%clk
0:00:39.5]} 46... Kb7 {[%clk 0:00:31.7]} 47. Ke1 {[%clk 0:00:39.6]} 47... Rc1+
{[%clk 0:00:24.5]} 48. Ke2 {[%clk 0:00:39.7]} 48... Rb1 {[%clk 0:00:19]} 49. f4
{[%clk 0:00:25.1]} 49... Rb3 {[%clk 0:00:16.8]} 50. Rxb3+ {[%clk 0:00:25.3]}
50... cxb3 {[%clk 0:00:17.2]} 51. Kd2 {[%clk 0:00:25.3]} 51... Kb6 {[%clk
0:00:16.9]} 52. f5 {[%clk 0:00:19.1]} 52... gxf5 {[%clk 0:00:04.5]} 53. g6
{[%clk 0:00:19]} 53... f4 {[%clk 0:00:03.3]} 54. g7 {[%clk 0:00:15.6]} 54... f3
{[%clk 0:00:03.1]} 55. g8=Q {[%clk 0:00:16.1]} 55... b2 {[%clk 0:00:03.5]} 56.
Kc2 {[%clk 0:00:16.2]} 56... f2 {[%clk 0:00:02.9]} 57. Qg2 {[%clk 0:00:16]} 1-0

[Event "Late-Titled-Tuesday-Blitz-January-16-2024"]
[Site "Chess.com"]
[Date "2024.01.16"]
[Round "7"]
[White "ChristopherYoo"]
[Black "cassoulet"]
[Result "1-0"]
[WhiteElo "2983"]
[BlackElo "2770"]
[TimeControl "180+1"]
[EndTime "15:18:21 PST"]
[Termination "ChristopherYoo won by resignation"]

1. Nf3 {[%clk 0:03:00.9]} 1... Nf6 {[%clk 0:02:59.5]} 2. b3 {[%clk 0:03:01]}
2... g6 {[%clk 0:03:00.2]} 3. Bb2 {[%clk 0:03:01.1]} 3... Bg7 {[%clk 0:03:00.9]}
4. g3 {[%clk 0:03:01.5]} 4... O-O {[%clk 0:03:01]} 5. Bg2 {[%clk 0:03:01.8]}
5... d6 {[%clk 0:03:01.4]} 6. d4 {[%clk 0:03:01.6]} 6... Nbd7 {[%clk 0:03:00.7]}
7. O-O {[%clk 0:03:01.1]} 7... c5 {[%clk 0:03:01.4]} 8. c4 {[%clk 0:03:00.1]}
8... a6 {[%clk 0:03:00.6]} 9. Nc3 {[%clk 0:02:59.9]} 9... Rb8 {[%clk 0:03:01]}
10. e4 {[%clk 0:02:58.3]} 10... cxd4 {[%clk 0:02:58.6]} 11. Nxd4 {[%clk
0:02:58]} 11... Nc5 {[%clk 0:02:59.2]} 12. Qe2 {[%clk 0:02:55.4]} 12... Bg4
{[%clk 0:02:58.4]} 13. f3 {[%clk 0:02:55.3]} 13... Bd7 {[%clk 0:02:49]} 14. Rfd1
{[%clk 0:02:55.2]} 14... b5 {[%clk 0:02:46.1]} 15. cxb5 {[%clk 0:02:52.5]} 15...
axb5 {[%clk 0:02:47]} 16. b4 {[%clk 0:02:46.2]} 16... Ne6 {[%clk 0:02:41.8]} 17.
Nxe6 {[%clk 0:02:45.8]} 17... Bxe6 {[%clk 0:02:36.9]} 18. Nxb5 {[%clk
0:02:43.1]} 18... Qb6+ {[%clk 0:02:26.7]} 19. Nd4 {[%clk 0:02:43]} 19... Qxb4
{[%clk 0:02:26.1]} 20. Nxe6 {[%clk 0:02:43.3]} 20... fxe6 {[%clk 0:02:22.7]} 21.
Rab1 {[%clk 0:02:37.7]} 21... Qa4 {[%clk 0:02:21.5]} 22. Bc3 {[%clk 0:02:27.9]}
22... Rfc8 {[%clk 0:02:12.3]} 23. Rxb8 {[%clk 0:02:26.4]} 23... Rxb8 {[%clk
0:02:13.2]} 24. Bh3 {[%clk 0:02:21.4]} 24... Kf7 {[%clk 0:02:09.1]} 25. e5
{[%clk 0:02:20.8]} 25... Nd5 {[%clk 0:02:02.5]} 26. exd6 {[%clk 0:02:20.6]}
26... Qa7+ {[%clk 0:01:36]} 27. Kh1 {[%clk 0:02:19.7]} 27... Nxc3 {[%clk
0:01:31]} 28. Qxe6+ {[%clk 0:02:19.3]} 28... Kf8 {[%clk 0:01:30.1]} 29. Re1
{[%clk 0:02:19.2]} 29... exd6 {[%clk 0:01:07.5]} 30. Qxd6+ {[%clk 0:01:49.6]}
30... Kg8 {[%clk 0:01:07.4]} 31. Bc8 {[%clk 0:01:49.3]} 31... Bf8 {[%clk
0:00:17.9]} 32. Re8 {[%clk 0:01:46.9]} 32... Rb1+ {[%clk 0:00:16.4]} 33. Kg2
{[%clk 0:01:47.3]} 33... Qxa2+ {[%clk 0:00:08.7]} 34. Kh3 {[%clk 0:01:45.5]}
34... Qf7 {[%clk 0:00:03]} 35. Qc6 {[%clk 0:00:51.5]} 35... Kg7 {[%clk
0:00:02.7]} 36. Qxc3+ {[%clk 0:00:51.1]} 36... Kh6 {[%clk 0:00:01.9]} 37. Qe3+
{[%clk 0:00:49.5]} 37... Kg7 {[%clk 0:00:01.8]} 38. Rd8 {[%clk 0:00:38]} 38...
Qf6 {[%clk 0:00:02]} 39. Qd3 {[%clk 0:00:23.2]} 39... Rb2 {[%clk 0:00:01.6]} 40.
Rd7+ {[%clk 0:00:17.6]} 40... Be7 {[%clk 0:00:01.5]} 41. Qe4 {[%clk 0:00:16.6]}
41... Kf7 {[%clk 0:00:02.1]} 42. Rd5 {[%clk 0:00:05.1]} 42... Kf8 {[%clk
0:00:02.5]} 43. Be6 {[%clk 0:00:02.3]} 43... h5 {[%clk 0:00:02.4]} 44. Ra5
{[%clk 0:00:02.1]} 44... Kg7 {[%clk 0:00:02.8]} 45. Ra8 {[%clk 0:00:02.7]} 45...
Kh6 {[%clk 0:00:03.4]} 46. Rg8 {[%clk 0:00:02.9]} 46... Rb6 {[%clk 0:00:02.4]}
47. Bd7 {[%clk 0:00:02.7]} 47... Rd6 {[%clk 0:00:02.2]} 48. Be8 {[%clk
0:00:03.2]} 48... Rd4 {[%clk 0:00:02.6]} 49. Rxg6+ {[%clk 0:00:03]} 49... Kh7
{[%clk 0:00:03.2]} 50. Rxf6+ {[%clk 0:00:03.6]} 50... Rxe4 {[%clk 0:00:03.8]}
51. Rf7+ {[%clk 0:00:04.1]} 51... Kg8 {[%clk 0:00:02.9]} 52. fxe4 {[%clk
0:00:05]} 52... Bg5 {[%clk 0:00:03.4]} 53. Rf5 {[%clk 0:00:04.8]} 53... Be7
{[%clk 0:00:03.5]} 54. Bxh5 {[%clk 0:00:04.7]} 54... Kg7 {[%clk 0:00:03.7]} 55.
Bf3 {[%clk 0:00:05]} 55... Bf6 {[%clk 0:00:04.6]} 56. Kg4 {[%clk 0:00:05.8]}
56... Kh6 {[%clk 0:00:05.5]} 57. h4 {[%clk 0:00:06.7]} 57... Kg6 {[%clk
0:00:06.2]} 58. Rxf6+ {[%clk 0:00:07]} 58... Kxf6 {[%clk 0:00:06.3]} 59. h5
{[%clk 0:00:07.9]} 1-0

[Event "Late-Titled-Tuesday-Blitz-January-16-2024"]
[Site "Chess.com"]
[Date "2024.01.16"]
[Round "7"]
[White "HalfIsCrayfish"]
[Black "JCVanDamme10"]
[Result "1/2-1/2"]
[WhiteElo "2605"]
[BlackElo "2360"]
[TimeControl "180+1"]
[EndTime "15:18:30 PST"]
[Termination "Game drawn by repetition"]

1. d4 {[%clk 0:03:00.9]} 1... d5 {[%clk 0:02:11.2]} 2. c4 {[%clk 0:03:00]} 2...
c6 {[%clk 0:02:10.7]} 3. Nf3 {[%clk 0:02:59.8]} 3... Nf6 {[%clk 0:02:11.4]} 4.
Nc3 {[%clk 0:03:00]} 4... e6 {[%clk 0:02:11.7]} 5. e3 {[%clk 0:02:58.2]} 5...
Nbd7 {[%clk 0:02:12.2]} 6. Bd2 {[%clk 0:02:56.1]} 6... Bd6 {[%clk 0:02:12.6]} 7.
Rc1 {[%clk 0:02:56.4]} 7... O-O {[%clk 0:02:12.7]} 8. Bd3 {[%clk 0:02:56.8]}
8... e5 {[%clk 0:02:11]} 9. dxe5 {[%clk 0:02:54.9]} 9... Nxe5 {[%clk 0:02:11.2]}
10. Nxe5 {[%clk 0:02:53.9]} 10... Bxe5 {[%clk 0:02:11.7]} 11. cxd5 {[%clk
0:02:51.6]} 11... cxd5 {[%clk 0:02:07.1]} 12. Ne2 {[%clk 0:02:37.2]} 12... Bxb2
{[%clk 0:02:05.9]} 13. Rb1 {[%clk 0:02:33.1]} 13... Be5 {[%clk 0:02:02]} 14. h3
{[%clk 0:02:32.9]} 14... b6 {[%clk 0:01:59.2]} 15. O-O {[%clk 0:02:31.6]} 15...
Bb7 {[%clk 0:01:59.1]} 16. Nd4 {[%clk 0:02:21]} 16... Bxd4 {[%clk 0:01:55.6]}
17. exd4 {[%clk 0:02:21.9]} 17... Ne4 {[%clk 0:01:56]} 18. Bb4 {[%clk
0:02:14.4]} 18... Re8 {[%clk 0:01:55.1]} 19. Bb5 {[%clk 0:01:58]} 19... Re6
{[%clk 0:01:54.6]} 20. f3 {[%clk 0:01:35.3]} 20... Nd6 {[%clk 0:01:47.4]} 21.
Bd3 {[%clk 0:01:32.6]} 21... Rc8 {[%clk 0:01:41]} 22. Re1 {[%clk 0:01:28]} 22...
Rxe1+ {[%clk 0:01:29.4]} 23. Qxe1 {[%clk 0:01:28.9]} 23... Qd7 {[%clk
0:01:29.6]} 24. Qg3 {[%clk 0:01:23.7]} 24... Nc4 {[%clk 0:01:26.3]} 25. Re1
{[%clk 0:01:11.8]} 25... Re8 {[%clk 0:01:23.3]} 26. Bf5 {[%clk 0:00:55.5]} 26...
Rxe1+ {[%clk 0:01:17.9]} 27. Qxe1 {[%clk 0:00:56.4]} 27... Qd8 {[%clk
0:01:04.1]} 28. Qg3 {[%clk 0:00:22.3]} 28... g6 {[%clk 0:01:01.6]} 29. Bd3
{[%clk 0:00:18.1]} 29... a5 {[%clk 0:00:57.4]} 30. Bc3 {[%clk 0:00:13.7]} 30...
b5 {[%clk 0:00:48.6]} 31. Qe1 {[%clk 0:00:09.8]} 31... b4 {[%clk 0:00:48.4]} 32.
Bd2 {[%clk 0:00:07.3]} 32... Nxd2 {[%clk 0:00:44.6]} 33. Qxd2 {[%clk 0:00:08.2]}
33... Qf6 {[%clk 0:00:43.7]} 34. Bb5 {[%clk 0:00:05.9]} 34... Ba6 {[%clk
0:00:41.1]} 35. Ba4 {[%clk 0:00:04.5]} 35... Bc4 {[%clk 0:00:40.2]} 36. Bb3
{[%clk 0:00:04]} 36... Bxb3 {[%clk 0:00:37]} 37. axb3 {[%clk 0:00:04.9]} 37...
Qc6 {[%clk 0:00:36.6]} 38. Kf2 {[%clk 0:00:05.1]} 38... Kg7 {[%clk 0:00:33]} 39.
Ke3 {[%clk 0:00:02.5]} 39... Qe6+ {[%clk 0:00:30.9]} 40. Kf2 {[%clk 0:00:02.9]}
40... Qf5 {[%clk 0:00:30.5]} 41. Qe3 {[%clk 0:00:02.1]} 41... Qc2+ {[%clk
0:00:30]} 42. Kg3 {[%clk 0:00:02.7]} 42... Qc7+ {[%clk 0:00:27.9]} 43. Kf2
{[%clk 0:00:02.7]} 43... h5 {[%clk 0:00:22.9]} 44. h4 {[%clk 0:00:02.9]} 44...
Kf8 {[%clk 0:00:19.6]} 45. Qe2 {[%clk 0:00:01.4]} 45... Qc3 {[%clk 0:00:16.9]}
46. Qe5 {[%clk 0:00:01.5]} 46... Qxb3 {[%clk 0:00:12.8]} 47. Kg3 {[%clk
0:00:02]} 47... Kg8 {[%clk 0:00:11.8]} 48. Qe8+ {[%clk 0:00:01.9]} 48... Kg7
{[%clk 0:00:11]} 49. Qe5+ {[%clk 0:00:02.4]} 49... Kh7 {[%clk 0:00:11.1]} 50.
Qe7 {[%clk 0:00:01.9]} 50... Kg8 {[%clk 0:00:08.4]} 51. Qe8+ {[%clk 0:00:02.3]}
51... Kg7 {[%clk 0:00:08.8]} 52. Qe5+ {[%clk 0:00:02.8]} 52... Kh7 {[%clk
0:00:07.6]} 53. Qe7 {[%clk 0:00:02.9]} 53... Kg8 {[%clk 0:00:06.1]} 54. Qe8+
{[%clk 0:00:03.5]} 1/2-1/2

[Event "Late-Titled-Tuesday-Blitz-January-16-2024"]
[Site "Chess.com"]
[Date "2024.01.16"]
[Round "7"]
[White "TheMagician"]
[Black "smotherhubbard"]
[Result "1-0"]
[WhiteElo "2162"]
[BlackElo "2310"]
[TimeControl "180+1"]
[EndTime "15:18:34 PST"]
[Termination "TheMagician won by checkmate"]

1. d4 {[%clk 0:02:53.6]} 1... Nf6 {[%clk 0:02:59.5]} 2. c4 {[%clk 0:02:52.7]}
2... e6 {[%clk 0:02:59.7]} 3. Nf3 {[%clk 0:02:51.9]} 3... b6 {[%clk 0:02:59]} 4.
g3 {[%clk 0:02:51.3]} 4... Ba6 {[%clk 0:02:59.3]} 5. b3 {[%clk 0:02:49.9]} 5...
Bb4+ {[%clk 0:02:58.9]} 6. Bd2 {[%clk 0:02:48.6]} 6... Be7 {[%clk 0:02:59.5]} 7.
Bc3 {[%clk 0:02:48.6]} 7... c6 {[%clk 0:02:59.5]} 8. Nbd2 {[%clk 0:02:48.4]}
8... d5 {[%clk 0:02:59.9]} 9. Bg2 {[%clk 0:02:47.2]} 9... O-O {[%clk 0:02:59.5]}
10. O-O {[%clk 0:02:40.7]} 10... c5 {[%clk 0:02:48.6]} 11. Ne5 {[%clk
0:02:34.3]} 11... Qc7 {[%clk 0:02:33]} 12. Rc1 {[%clk 0:02:23.4]} 12... Nbd7
{[%clk 0:02:27.8]} 13. Nxd7 {[%clk 0:02:21.5]} 13... Qxd7 {[%clk 0:02:25.9]} 14.
dxc5 {[%clk 0:02:15.5]} 14... Bxc5 {[%clk 0:02:22.8]} 15. Bxf6 {[%clk 0:01:37]}
15... gxf6 {[%clk 0:02:23.7]} 16. cxd5 {[%clk 0:01:35.6]} 16... exd5 {[%clk
0:02:22.9]} 17. Ne4 {[%clk 0:01:31]} 17... Be7 {[%clk 0:02:17.3]} 18. Nc3 {[%clk
0:01:30.7]} 18... d4 {[%clk 0:02:00.9]} 19. Nd5 {[%clk 0:01:20.6]} 19... Bb7
{[%clk 0:01:04.3]} 20. Qxd4 {[%clk 0:01:16.2]} 20... Bxd5 {[%clk 0:01:00.8]} 21.
Qxd5 {[%clk 0:00:55.4]} 21... Qxd5 {[%clk 0:00:59.9]} 22. Bxd5 {[%clk
0:00:55.3]} 22... Rad8 {[%clk 0:00:56.8]} 23. e4 {[%clk 0:00:49.1]} 23... Bc5
{[%clk 0:00:45]} 24. g4 {[%clk 0:00:40.7]} 24... Rfe8 {[%clk 0:00:36]} 25. Kg2
{[%clk 0:00:39.5]} 25... Kg7 {[%clk 0:00:26.5]} 26. f4 {[%clk 0:00:30.9]} 26...
h5 {[%clk 0:00:23.1]} 27. h3 {[%clk 0:00:28.5]} 27... hxg4 {[%clk 0:00:19.7]}
28. hxg4 {[%clk 0:00:28.8]} 28... Rh8 {[%clk 0:00:20.5]} 29. Rh1 {[%clk
0:00:18.6]} 29... Be3 {[%clk 0:00:21.1]} 30. Rxh8 {[%clk 0:00:17.8]} 30... Rxh8
{[%clk 0:00:21.8]} 31. Rc7 {[%clk 0:00:18]} 31... Bxf4 {[%clk 0:00:19.1]} 32.
Rxf7+ {[%clk 0:00:17.3]} 32... Kg6 {[%clk 0:00:18.7]} 33. Kf3 {[%clk 0:00:18.2]}
33... Be5 {[%clk 0:00:18.1]} 34. Rxa7 {[%clk 0:00:18.1]} 34... Rh3+ {[%clk
0:00:17.9]} 35. Kf2 {[%clk 0:00:18.7]} 35... Kg5 {[%clk 0:00:16]} 36. Be6 {[%clk
0:00:18.6]} 36... Kf4 {[%clk 0:00:13.7]} 37. Bf5 {[%clk 0:00:18.5]} 37... Rh2+
{[%clk 0:00:13.3]} 38. Ke1 {[%clk 0:00:18.5]} 38... Ke3 {[%clk 0:00:10.9]} 39.
Kd1 {[%clk 0:00:18.3]} 39... Rd2+ {[%clk 0:00:08.2]} 40. Kc1 {[%clk 0:00:18]}
40... Rg2 {[%clk 0:00:06.6]} 41. a4 {[%clk 0:00:14.9]} 41... Kd3 {[%clk
0:00:05.3]} 42. Rd7+ {[%clk 0:00:12.8]} 42... Bd4 {[%clk 0:00:02.9]} 43. e5+
{[%clk 0:00:05.5]} 43... Kc3 {[%clk 0:00:03.5]} 44. Rxd4 {[%clk 0:00:05.2]}
44... Kxd4 {[%clk 0:00:03.1]} 45. exf6 {[%clk 0:00:05.7]} 45... Rf2 {[%clk
0:00:01.5]} 46. f7 {[%clk 0:00:05.8]} 46... Rf1+ {[%clk 0:00:02.4]} 47. Kd2
{[%clk 0:00:05.9]} 47... Rf2+ {[%clk 0:00:02.9]} 48. Ke1 {[%clk 0:00:06.4]}
48... Rh2 {[%clk 0:00:03.5]} 49. f8=Q {[%clk 0:00:06.6]} 49... Ke3 {[%clk
0:00:04.4]} 50. Qe7+ {[%clk 0:00:04.6]} 50... Kf3 {[%clk 0:00:04.9]} 51. Qe4+
{[%clk 0:00:04.2]} 51... Kg3 {[%clk 0:00:05.7]} 52. Qe5+ {[%clk 0:00:04.8]}
52... Kh3 {[%clk 0:00:05.7]} 53. Qxh2+ {[%clk 0:00:05.7]} 53... Kxh2 {[%clk
0:00:06.2]} 54. g5 {[%clk 0:00:06.3]} 54... Kg3 {[%clk 0:00:07]} 55. g6 {[%clk
0:00:07.2]} 55... Kf4 {[%clk 0:00:07.8]} 56. g7 {[%clk 0:00:08.1]} 56... Kxf5
{[%clk 0:00:08.5]} 57. g8=Q {[%clk 0:00:09]} 57... Ke4 {[%clk 0:00:09.3]} 58.
Qb8 {[%clk 0:00:09.3]} 58... Kd3 {[%clk 0:00:09.6]} 59. Qxb6 {[%clk 0:00:10.2]}
59... Kc3 {[%clk 0:00:10.2]} 60. a5 {[%clk 0:00:10.9]} 60... Kb2 {[%clk
0:00:11.1]} 61. a6 {[%clk 0:00:11.8]} 61... Kc3 {[%clk 0:00:11.5]} 62. a7 {[%clk
0:00:12.7]} 62... Kd3 {[%clk 0:00:12.1]} 63. a8=Q {[%clk 0:00:13.6]} 63... Kc2
{[%clk 0:00:11.1]} 64. Qc8+ {[%clk 0:00:14.5]} 64... Kb2 {[%clk 0:00:11.1]} 65.
Qbd8 {[%clk 0:00:15.4]} 65... Kxb3 {[%clk 0:00:11.2]} 66. Qdc7 {[%clk 0:00:15]}
66... Kb2 {[%clk 0:00:12.1]} 67. Q7b8+ {[%clk 0:00:15.9]} 67... Ka3 {[%clk
0:00:11.5]} 68. Qcb7 {[%clk 0:00:16.8]} 68... Ka4 {[%clk 0:00:11.4]} 69. Q7a8#
{[%clk 0:00:17.7]} 1-0

[Event "Late-Titled-Tuesday-Blitz-January-16-2024"]
[Site "Chess.com"]
[Date "2024.01.16"]
[Round "7"]
[White "DishonorOnYourCow"]
[Black "wild3000"]
[Result "0-1"]
[WhiteElo "2538"]
[BlackElo "2402"]
[TimeControl "180+1"]
[EndTime "15:18:36 PST"]
[Termination "wild3000 won on time"]

1. d4 {[%clk 0:03:00.9]} 1... Nf6 {[%clk 0:02:27.5]} 2. c4 {[%clk 0:02:59.4]}
2... e6 {[%clk 0:02:26]} 3. Nf3 {[%clk 0:02:59.6]} 3... Bb4+ {[%clk 0:02:22]} 4.
Nbd2 {[%clk 0:02:59.3]} 4... O-O {[%clk 0:02:21.6]} 5. a3 {[%clk 0:02:59.2]}
5... Be7 {[%clk 0:02:19.6]} 6. e4 {[%clk 0:02:59.1]} 6... d6 {[%clk 0:02:19.8]}
7. Be2 {[%clk 0:02:58.7]} 7... a5 {[%clk 0:02:15.4]} 8. O-O {[%clk 0:02:57.6]}
8... b6 {[%clk 0:02:14.9]} 9. Qc2 {[%clk 0:02:55.1]} 9... Bb7 {[%clk 0:02:14.7]}
10. Bd3 {[%clk 0:02:50.4]} 10... h6 {[%clk 0:02:10.8]} 11. b3 {[%clk 0:02:49.9]}
11... Nbd7 {[%clk 0:02:09.6]} 12. Bb2 {[%clk 0:02:50.3]} 12... Re8 {[%clk
0:02:07.8]} 13. Rad1 {[%clk 0:02:47.5]} 13... Bf8 {[%clk 0:02:06.9]} 14. e5
{[%clk 0:02:44.3]} 14... Nh5 {[%clk 0:01:59.2]} 15. Bh7+ {[%clk 0:02:34]} 15...
Kh8 {[%clk 0:01:58.9]} 16. Be4 {[%clk 0:02:34.4]} 16... Qc8 {[%clk 0:01:47.1]}
17. Rfe1 {[%clk 0:02:06.3]} 17... Nf4 {[%clk 0:01:36.4]} 18. g3 {[%clk
0:01:59.5]} 18... Nh3+ {[%clk 0:01:33.3]} 19. Kg2 {[%clk 0:01:59.4]} 19... Ng5
{[%clk 0:01:33.4]} 20. Nxg5 {[%clk 0:01:56.7]} 20... hxg5 {[%clk 0:01:34.3]} 21.
Nf3 {[%clk 0:01:50.1]} 21... Be7 {[%clk 0:01:29]} 22. h3 {[%clk 0:01:43.2]}
22... dxe5 {[%clk 0:01:25.7]} 23. Nxe5 {[%clk 0:01:36.8]} 23... Nxe5 {[%clk
0:01:20.1]} 24. dxe5 {[%clk 0:01:37.7]} 24... Kg8 {[%clk 0:01:10.9]} 25. Kg1
{[%clk 0:01:22.1]} 25... Bxe4 {[%clk 0:01:07.3]} 26. Qxe4 {[%clk 0:01:23]} 26...
Bc5 {[%clk 0:00:55]} 27. Bc1 {[%clk 0:01:13.8]} 27... Rd8 {[%clk 0:00:47.5]} 28.
Bxg5 {[%clk 0:01:12.5]} 28... Rxd1 {[%clk 0:00:47]} 29. Rxd1 {[%clk 0:01:13.4]}
29... Bxa3 {[%clk 0:00:47.3]} 30. Rd8+ {[%clk 0:01:12.9]} 30... Qxd8 {[%clk
0:00:46.9]} 31. Bxd8 {[%clk 0:01:13.5]} 31... Rxd8 {[%clk 0:00:47.8]} 32. Qc6
{[%clk 0:01:12.7]} 32... Bc5 {[%clk 0:00:45.8]} 33. Qxc7 {[%clk 0:00:54.3]}
33... Rd3 {[%clk 0:00:39.5]} 34. Qb8+ {[%clk 0:00:46.9]} 34... Kh7 {[%clk
0:00:38.6]} 35. Qb7 {[%clk 0:00:42.4]} 35... Rxg3+ {[%clk 0:00:33.6]} 36. Kh2
{[%clk 0:00:40.4]} 36... Rxb3 {[%clk 0:00:26.5]} 37. Qxf7 {[%clk 0:00:40.1]}
37... Rb2 {[%clk 0:00:26.1]} 38. Qh5+ {[%clk 0:00:30.8]} 38... Kg8 {[%clk
0:00:25.7]} 39. Qe8+ {[%clk 0:00:30.5]} 39... Kh7 {[%clk 0:00:25.9]} 40. Qxe6
{[%clk 0:00:30.4]} 40... Rxf2+ {[%clk 0:00:25.6]} 41. Kg3 {[%clk 0:00:30.5]}
41... a4 {[%clk 0:00:24]} 42. Qc6 {[%clk 0:00:18.7]} 42... a3 {[%clk 0:00:23.5]}
43. Qe4+ {[%clk 0:00:16.5]} 43... g6 {[%clk 0:00:19.8]} 44. e6 {[%clk
0:00:11.1]} 44... a2 {[%clk 0:00:18.7]} 45. Qb7+ {[%clk 0:00:08.4]} 45... Kh6
{[%clk 0:00:18.4]} 46. Qa8 {[%clk 0:00:08.5]} 46... Bd4 {[%clk 0:00:17.4]} 47.
e7 {[%clk 0:00:07.1]} 47... Re2 {[%clk 0:00:14.7]} 48. e8=Q {[%clk 0:00:02.7]}
48... Rxe8 {[%clk 0:00:14]} 49. Qxe8 {[%clk 0:00:03.6]} 49... a1=Q {[%clk
0:00:13.9]} 50. Qf8+ {[%clk 0:00:04.3]} 50... Bg7 {[%clk 0:00:13.1]} 51. Qf4+
{[%clk 0:00:04.2]} 51... Kh7 {[%clk 0:00:13.5]} 52. Qh4+ {[%clk 0:00:04.6]}
52... Bh6 {[%clk 0:00:13.7]} 53. Qe7+ {[%clk 0:00:04.7]} 53... Qg7 {[%clk
0:00:13.6]} 54. Qe4 {[%clk 0:00:04.2]} 54... Qd7 {[%clk 0:00:12.6]} 55. h4
{[%clk 0:00:03.4]} 55... Qc7+ {[%clk 0:00:12.7]} 56. Kh3 {[%clk 0:00:03.3]}
56... Bf4 {[%clk 0:00:12.5]} 57. Kg4 {[%clk 0:00:03.2]} 57... Bd6 {[%clk
0:00:12.3]} 58. h5 {[%clk 0:00:03.4]} 58... Qd7+ {[%clk 0:00:12.5]} 59. Kh4
{[%clk 0:00:02]} 59... Be7+ {[%clk 0:00:12]} 60. Kg3 {[%clk 0:00:01.6]} 60...
Qf5 {[%clk 0:00:11]} 61. Qxe7+ {[%clk 0:00:01.3]} 61... Kh6 {[%clk 0:00:11.2]}
62. Qe3+ {[%clk 0:00:01.3]} 62... g5 {[%clk 0:00:10.9]} 0-1